[Event "Titled Tuesday Blitz July 13 2021"]
[White "Aradhya, Garg"]
[Black "Pacheco Lugo, Alejandro Jose"]
[WhiteFideId "25006746"]
[BlackFideId "3903745"]
[WhiteElo "2146"]
[BlackElo "2125"]
[Result "1-0"]
[Round "05"]
[TimeControl "180+1"]
[Date "2021.07.13"]
[WhiteClock "0:01:39"]
[BlackClock "0:01:04"]

1. d4 {[%clk 0:03:00]}  Nf6 {[%clk 0:02:59]} 2. c4 {[%clk 0:03:01]}  e6 {[%clk 0:02:59]} 3. Nf3 {[%clk 0:03:01]}  d5 {[%clk 0:02:59]} 4. e3 {[%clk 0:02:56]}  c6 {[%clk 0:02:58]} 5. Nc3 {[%clk 0:02:54]}  Nbd7 {[%clk 0:02:58]} 6. Be2 {[%clk 0:02:55]}  dxc4 {[%clk 0:02:58]} 7. O-O {[%clk 0:02:54]}  Be7 {[%clk 0:02:37]} 8. a4 {[%clk 0:02:53]}  O-O {[%clk 0:02:34]} 9. Bxc4 {[%clk 0:02:46]}  a6 {[%clk 0:02:30]} 10. Qe2 {[%clk 0:02:42]}  c5 {[%clk 0:02:29]} 11. Rd1 {[%clk 0:02:41]}  Qc7 {[%clk 0:02:27]} 12. d5 {[%clk 0:02:41]}  exd5 {[%clk 0:02:26]} 13. Bxd5 {[%clk 0:02:41]}  Nb6 {[%clk 0:02:15]} 14. Ba2 {[%clk 0:02:40]}  Bf5 {[%clk 0:02:04]} 15. a5 {[%clk 0:02:29]}  Nbd7 {[%clk 0:02:03]} 16. e4 {[%clk 0:02:29]}  Bg4 {[%clk 0:01:57]} 17. h3 {[%clk 0:02:29]}  Bh5 {[%clk 0:01:57]} 18. g4 {[%clk 0:02:25]}  Nxg4 {[%clk 0:01:54]} 19. hxg4 {[%clk 0:02:23]}  Bxg4 {[%clk 0:01:53]} 20. Nd5 {[%clk 0:02:23]}  Qd8 {[%clk 0:01:52]} 21. Nb6 {[%clk 0:02:05]}  Rb8 {[%clk 0:01:33]} 22. Nxd7 {[%clk 0:02:03]}  Bxd7 {[%clk 0:01:34]} 23. Ne5 {[%clk 0:02:02]}  Bb5 {[%clk 0:01:33]} 24. Rxd8 {[%clk 0:02:00]}  Bxe2 {[%clk 0:01:33]} 25. Bxf7+ {[%clk 0:01:59]}  Kh8 {[%clk 0:01:33]} 26. Rxb8 {[%clk 0:01:59]}  Rxb8 {[%clk 0:01:32]} 27. Bc4 {[%clk 0:01:58]}  Bh5 {[%clk 0:01:26]} 28. Be3 {[%clk 0:01:55]}  Rf8 {[%clk 0:01:23]} 29. Bd5 {[%clk 0:01:49]}  Bd6 {[%clk 0:01:20]} 30. Nc4 {[%clk 0:01:48]}  Bb8 {[%clk 0:01:09]} 31. e5 {[%clk 0:01:40]}  Rf5 {[%clk 0:01:06]} 32. Be4 {[%clk 0:01:39]}  Rf7 {[%clk 0:01:04]} 1-0


[Site "https://www.chess.com"]

[Event "Titled Tuesday Blitz July 13 2021"]
[White "Barp, Alberto"]
[Black "Darini, Pouria"]
[WhiteFideId "872555"]
[BlackFideId "12502200"]
[WhiteElo "2229"]
[BlackElo "2489"]
[Result "1-0"]
[Round "05"]
[TimeControl "180+1"]
[Date "2021.07.13"]
[WhiteClock "0:01:02"]
[BlackClock "0:00:14"]

1. d4 {[%clk 0:02:59]}  Nf6 {[%clk 0:02:59]} 2. c4 {[%clk 0:02:58]}  g6 {[%clk 0:03:00]} 3. g3 {[%clk 0:02:54]}  Bg7 {[%clk 0:03:00]} 4. Bg2 {[%clk 0:02:54]}  d5 {[%clk 0:03:01]} 5. cxd5 {[%clk 0:02:53]}  Nxd5 {[%clk 0:03:02]} 6. e4 {[%clk 0:02:53]}  Nb6 {[%clk 0:03:02]} 7. Ne2 {[%clk 0:02:53]}  c5 {[%clk 0:03:02]} 8. d5 {[%clk 0:02:53]}  O-O {[%clk 0:03:02]} 9. O-O {[%clk 0:02:53]}  e6 {[%clk 0:03:02]} 10. Nec3 {[%clk 0:02:50]}  Na6 {[%clk 0:02:47]} 11. a4 {[%clk 0:02:49]}  exd5 {[%clk 0:02:47]} 12. exd5 {[%clk 0:02:49]}  Nc4 {[%clk 0:02:47]} 13. Nd2 {[%clk 0:02:47]}  Ne5 {[%clk 0:02:48]} 14. Nde4 {[%clk 0:02:41]}  Bg4 {[%clk 0:02:36]} 15. f3 {[%clk 0:02:40]}  Bf5 {[%clk 0:02:37]} 16. Bg5 {[%clk 0:02:32]}  f6 {[%clk 0:02:27]} 17. Bf4 {[%clk 0:02:29]}  Rc8 {[%clk 0:01:24]} 18. Qb3 {[%clk 0:02:18]}  Qb6 {[%clk 0:01:12]} 19. Qxb6 {[%clk 0:02:15]}  axb6 {[%clk 0:01:13]} 20. Nd6 {[%clk 0:02:12]}  Rcd8 {[%clk 0:01:10]} 21. Nxf5 {[%clk 0:02:06]}  gxf5 {[%clk 0:01:08]} 22. Rad1 {[%clk 0:01:56]}  Nb4 {[%clk 0:00:51]} 23. Bh3 {[%clk 0:01:45]}  Ned3 {[%clk 0:00:38]} 24. Bc7 {[%clk 0:01:34]}  Rc8 {[%clk 0:00:22]} 25. d6 {[%clk 0:01:31]}  Nxb2 {[%clk 0:00:20]} 26. Bxf5 {[%clk 0:01:27]}  Nxd1 {[%clk 0:00:20]} 27. Rxd1 {[%clk 0:01:28]}  Nc6 {[%clk 0:00:13]} 28. Be6+ {[%clk 0:01:18]}  Kh8 {[%clk 0:00:13]} 29. Bxc8 {[%clk 0:01:15]}  Rxc8 {[%clk 0:00:14]} 30. d7 {[%clk 0:01:04]}  Rxc7 {[%clk 0:00:13]} 31. d8=Q+ {[%clk 0:01:05]}  Nxd8 {[%clk 0:00:13]} 32. Rxd8+ {[%clk 0:01:05]}  Bf8 {[%clk 0:00:14]} 33. Rxf8+ {[%clk 0:01:06]}  Kg7 {[%clk 0:00:14]} 34. Rd8 {[%clk 0:01:04]}  Re7 {[%clk 0:00:14]} 35. Kf2 {[%clk 0:01:03]}  h5 {[%clk 0:00:14]} 36. Rd6 {[%clk 0:01:02]} 1-0


[Site "https://www.chess.com"]

[Event "Titled Tuesday Blitz July 13 2021"]
[White "Bortnyk, Olexandr"]
[Black "Golubev, Mikhail"]
[WhiteFideId "14120828"]
[BlackFideId "14100983"]
[WhiteElo "2723"]
[BlackElo "2374"]
[Result "1-0"]
[Round "05"]
[TimeControl "180+1"]
[Date "2021.07.13"]
[WhiteClock "0:00:38"]
[BlackClock "0:00:01"]

1. d4 {[%clk 0:02:58]}  Nf6 {[%clk 0:02:59]} 2. Nc3 {[%clk 0:02:58]}  d5 {[%clk 0:02:57]} 3. Bf4 {[%clk 0:02:59]}  c5 {[%clk 0:02:57]} 4. e3 {[%clk 0:02:55]}  cxd4 {[%clk 0:02:56]} 5. exd4 {[%clk 0:02:54]}  a6 {[%clk 0:02:55]} 6. Nf3 {[%clk 0:02:54]}  Nc6 {[%clk 0:02:54]} 7. Ne5 {[%clk 0:02:55]}  Bf5 {[%clk 0:02:40]} 8. g4 {[%clk 0:02:30]}  Nxe5 {[%clk 0:02:39]} 9. dxe5 {[%clk 0:02:29]}  Nxg4 {[%clk 0:02:38]} 10. h3 {[%clk 0:02:20]}  Nxf2 {[%clk 0:02:13]} 11. Kxf2 {[%clk 0:02:18]}  e6 {[%clk 0:02:13]} 12. Bd3 {[%clk 0:02:02]}  Qb6+ {[%clk 0:01:49]} 13. Kg2 {[%clk 0:01:51]}  Qxb2 {[%clk 0:01:49]} 14. Nxd5 {[%clk 0:01:36]}  O-O-O {[%clk 0:00:18]} 15. Bxf5 {[%clk 0:01:29]}  exf5 {[%clk 0:00:12]} 16. Rb1 {[%clk 0:01:10]}  Qxa2 {[%clk 0:00:12]} 17. Nb6+ {[%clk 0:01:07]}  Kc7 {[%clk 0:00:12]} 18. e6+ {[%clk 0:01:07]}  Bd6 {[%clk 0:00:11]} 19. Na8+ {[%clk 0:01:01]}  Kc8 {[%clk 0:00:08]} 20. Bxd6 {[%clk 0:01:00]}  Rxd6 {[%clk 0:00:03]} 21. Qxd6 {[%clk 0:00:39]}  Qxc2+ {[%clk 0:00:03]} 22. Kf3 {[%clk 0:00:39]}  Qe4+ {[%clk 0:00:02]} 23. Kf2 {[%clk 0:00:39]}  Qc2+ {[%clk 0:00:02]} 24. Ke3 {[%clk 0:00:38]}  Qe4+ {[%clk 0:00:01]} 25. Kd2 {[%clk 0:00:38]} 1-0


[Site "https://www.chess.com"]

[Event "Titled Tuesday Blitz July 13 2021"]
[White "Cabarkapa, Novak"]
[Black "Stoyanov, Tsvetan"]
[WhiteFideId "943746"]
[BlackFideId "2917173"]
[WhiteElo "2469"]
[BlackElo "2198"]
[Result "0-1"]
[Round "05"]
[TimeControl "180+1"]
[Date "2021.07.13"]
[WhiteClock "0:00:17"]
[BlackClock "0:00:46"]

1. d4 {[%clk 0:03:00]}  Nf6 {[%clk 0:02:59]} 2. Nc3 {[%clk 0:03:01]}  d5 {[%clk 0:02:57]} 3. Bf4 {[%clk 0:03:01]}  g6 {[%clk 0:02:54]} 4. e3 {[%clk 0:03:01]}  Bg7 {[%clk 0:02:54]} 5. h4 {[%clk 0:03:01]}  h5 {[%clk 0:02:53]} 6. Nf3 {[%clk 0:03:01]}  c6 {[%clk 0:02:52]} 7. Ne5 {[%clk 0:03:00]}  Nbd7 {[%clk 0:02:52]} 8. Bd3 {[%clk 0:02:57]}  Nxe5 {[%clk 0:02:49]} 9. Bxe5 {[%clk 0:02:58]}  Be6 {[%clk 0:02:43]} 10. Qf3 {[%clk 0:02:54]}  Qb6 {[%clk 0:02:38]} 11. Rb1 {[%clk 0:02:29]}  O-O {[%clk 0:02:21]} 12. O-O {[%clk 0:02:23]}  Ng4 {[%clk 0:02:18]} 13. Bxg7 {[%clk 0:02:21]}  Kxg7 {[%clk 0:02:19]} 14. Qf4 {[%clk 0:02:18]}  Rac8 {[%clk 0:02:06]} 15. b4 {[%clk 0:02:06]}  Qc7 {[%clk 0:01:55]} 16. Qxc7 {[%clk 0:02:03]}  Rxc7 {[%clk 0:01:56]} 17. a4 {[%clk 0:02:00]}  Bf5 {[%clk 0:01:52]} 18. f3 {[%clk 0:01:52]}  Nxe3 {[%clk 0:01:50]} 19. Rfe1 {[%clk 0:01:12]}  Nxc2 {[%clk 0:01:49]} 20. Bxf5 {[%clk 0:01:12]}  Nxe1 {[%clk 0:01:42]} 21. Rxe1 {[%clk 0:01:02]}  gxf5 {[%clk 0:01:41]} 22. Kf2 {[%clk 0:00:56]}  Kf6 {[%clk 0:01:39]} 23. Ne2 {[%clk 0:00:54]}  Kg6 {[%clk 0:01:23]} 24. Nf4+ {[%clk 0:00:52]}  Kh6 {[%clk 0:01:23]} 25. Re5 {[%clk 0:00:50]}  e6 {[%clk 0:01:24]} 26. g4 {[%clk 0:00:50]}  hxg4 {[%clk 0:01:20]} 27. fxg4 {[%clk 0:00:50]}  fxg4 {[%clk 0:01:20]} 28. Rg5 {[%clk 0:00:44]}  Rcc8 {[%clk 0:01:15]} 29. Kg3 {[%clk 0:00:40]}  Rg8 {[%clk 0:01:12]} 30. Re5 {[%clk 0:00:37]}  a5 {[%clk 0:01:06]} 31. bxa5 {[%clk 0:00:36]}  Ra8 {[%clk 0:01:06]} 32. Nh5 {[%clk 0:00:36]}  Rxa5 {[%clk 0:00:59]} 33. Nf6 {[%clk 0:00:35]}  Rg6 {[%clk 0:00:56]} 34. Nxg4+ {[%clk 0:00:35]}  Rxg4+ {[%clk 0:00:54]} 35. Kxg4 {[%clk 0:00:35]}  Rxa4 {[%clk 0:00:55]} 36. Rh5+ {[%clk 0:00:33]}  Kg6 {[%clk 0:00:56]} 37. Rg5+ {[%clk 0:00:33]}  Kf6 {[%clk 0:00:56]} 38. Kh5 {[%clk 0:00:30]}  Rxd4 {[%clk 0:00:56]} 39. Rg1 {[%clk 0:00:31]}  b5 {[%clk 0:00:54]} 40. Rf1+ {[%clk 0:00:31]}  Ke7 {[%clk 0:00:54]} 41. Kg5 {[%clk 0:00:31]}  f6+ {[%clk 0:00:54]} 42. Kh5 {[%clk 0:00:27]}  b4 {[%clk 0:00:54]} 43. Rh1 {[%clk 0:00:24]}  b3 {[%clk 0:00:53]} 44. Kg6 {[%clk 0:00:24]}  Rg4+ {[%clk 0:00:51]} 45. Kh6 {[%clk 0:00:21]}  b2 {[%clk 0:00:51]} 46. h5 {[%clk 0:00:20]}  c5 {[%clk 0:00:47]} 47. Rb1 {[%clk 0:00:18]}  Rg2 {[%clk 0:00:47]} 48. Kh7 {[%clk 0:00:18]}  c4 {[%clk 0:00:47]} 49. h6 {[%clk 0:00:18]}  c3 {[%clk 0:00:48]} 50. Kh8 {[%clk 0:00:18]}  Rh2 {[%clk 0:00:48]} 51. h7 {[%clk 0:00:17]}  Rxh7+ {[%clk 0:00:48]} 52. Kxh7 {[%clk 0:00:16]}  c2 {[%clk 0:00:49]} 53. Rxb2 {[%clk 0:00:15]}  c1=Q {[%clk 0:00:49]} 54. Rg2 {[%clk 0:00:16]}  Qb1+ {[%clk 0:00:48]} 55. Rg6 {[%clk 0:00:17]}  Kf7 {[%clk 0:00:45]} 56. Kh8 {[%clk 0:00:18]}  Kxg6 {[%clk 0:00:46]} 57. Kg8 {[%clk 0:00:17]}  Qb8# {[%clk 0:00:46]} 0-1


[Site "https://www.chess.com"]

[Event "Titled Tuesday Blitz July 13 2021"]
[White "Cornette, Matthieu"]
[Black "Dowgird, Filip"]
[WhiteFideId "620084"]
[BlackFideId "1121235"]
[WhiteElo "2500"]
[BlackElo "2209"]
[Result "0-1"]
[Round "05"]
[TimeControl "180+1"]
[Date "2021.07.13"]
[WhiteClock "0:00:03"]
[BlackClock "0:00:19"]

1. Nc3 {[%clk 0:03:00]}  d6 {[%clk 0:02:55]} 2. e4 {[%clk 0:03:01]}  Nf6 {[%clk 0:02:55]} 3. f4 {[%clk 0:03:01]}  c6 {[%clk 0:02:55]} 4. Nf3 {[%clk 0:02:59]}  Qa5 {[%clk 0:02:55]} 5. g3 {[%clk 0:02:33]}  g6 {[%clk 0:02:50]} 6. Bg2 {[%clk 0:02:33]}  Bg7 {[%clk 0:02:51]} 7. O-O {[%clk 0:02:32]}  O-O {[%clk 0:02:51]} 8. d3 {[%clk 0:02:31]}  Qh5 {[%clk 0:02:48]} 9. e5 {[%clk 0:01:38]}  dxe5 {[%clk 0:02:46]} 10. Nxe5 {[%clk 0:01:33]}  Qxd1 {[%clk 0:02:44]} 11. Rxd1 {[%clk 0:01:31]}  Nbd7 {[%clk 0:02:44]} 12. Nc4 {[%clk 0:01:30]}  Nb6 {[%clk 0:02:41]} 13. Na5 {[%clk 0:01:13]}  Nfd5 {[%clk 0:02:40]} 14. Ne2 {[%clk 0:01:03]}  Bg4 {[%clk 0:01:58]} 15. Kf2 {[%clk 0:01:02]}  Rab8 {[%clk 0:01:56]} 16. h3 {[%clk 0:00:49]}  Bxe2 {[%clk 0:01:53]} 17. Kxe2 {[%clk 0:00:49]}  Na4 {[%clk 0:01:54]} 18. d4 {[%clk 0:00:31]}  Rfd8 {[%clk 0:01:40]} 19. Rd2 {[%clk 0:00:18]}  Rd7 {[%clk 0:01:24]} 20. c3 {[%clk 0:00:19]}  e6 {[%clk 0:01:17]} 21. Nc4 {[%clk 0:00:18]}  b5 {[%clk 0:01:09]} 22. Ne5 {[%clk 0:00:18]}  Rc7 {[%clk 0:01:06]} 23. Kf2 {[%clk 0:00:10]}  a5 {[%clk 0:01:04]} 24. Re2 {[%clk 0:00:07]}  Nab6 {[%clk 0:01:00]} 25. Rb1 {[%clk 0:00:07]}  a4 {[%clk 0:00:59]} 26. Bd2 {[%clk 0:00:06]}  Nc4 {[%clk 0:00:59]} 27. Be1 {[%clk 0:00:05]}  Nd6 {[%clk 0:00:50]} 28. b3 {[%clk 0:00:05]}  axb3 {[%clk 0:00:48]} 29. axb3 {[%clk 0:00:06]}  h5 {[%clk 0:00:43]} 30. Ra2 {[%clk 0:00:05]}  h4 {[%clk 0:00:43]} 31. gxh4 {[%clk 0:00:03]}  Nxf4 {[%clk 0:00:43]} 32. Ra6 {[%clk 0:00:03]}  Bxe5 {[%clk 0:00:41]} 33. dxe5 {[%clk 0:00:03]}  Nd3+ {[%clk 0:00:41]} 34. Ke3 {[%clk 0:00:02]}  Nxe5 {[%clk 0:00:40]} 35. Bg3 {[%clk 0:00:02]}  Nf5+ {[%clk 0:00:40]} 36. Kf4 {[%clk 0:00:03]}  Nd3+ {[%clk 0:00:36]} 37. Ke4 {[%clk 0:00:02]}  Nxg3+ {[%clk 0:00:36]} 38. Kxd3 {[%clk 0:00:03]}  Rd8+ {[%clk 0:00:34]} 39. Kc2 {[%clk 0:00:03]}  c5 {[%clk 0:00:33]} 40. Rd1 {[%clk 0:00:02]}  Rxd1 {[%clk 0:00:31]} 41. Kxd1 {[%clk 0:00:03]}  Nf5 {[%clk 0:00:30]} 42. Bf3 {[%clk 0:00:02]}  Nxh4 {[%clk 0:00:30]} 43. Bc6 {[%clk 0:00:03]}  b4 {[%clk 0:00:29]} 44. c4 {[%clk 0:00:03]}  Nf5 {[%clk 0:00:28]} 45. Kc1 {[%clk 0:00:02]}  Nd4 {[%clk 0:00:29]} 46. Ba4 {[%clk 0:00:03]}  f5 {[%clk 0:00:25]} 47. Ra8+ {[%clk 0:00:03]}  Kf7 {[%clk 0:00:26]} 48. Kd2 {[%clk 0:00:04]}  Kf6 {[%clk 0:00:26]} 49. Ke3 {[%clk 0:00:05]}  g5 {[%clk 0:00:26]} 50. Rh8 {[%clk 0:00:04]}  Ke5 {[%clk 0:00:24]} 51. Rh6 {[%clk 0:00:04]}  f4+ {[%clk 0:00:23]} 52. Kd3 {[%clk 0:00:04]}  Kf5 {[%clk 0:00:23]} 53. h4 {[%clk 0:00:04]}  g4 {[%clk 0:00:23]} 54. Rh5+ {[%clk 0:00:04]}  Kf6 {[%clk 0:00:22]} 55. Rg5 {[%clk 0:00:05]}  g3 {[%clk 0:00:22]} 56. Ke4 {[%clk 0:00:06]}  Rg7 {[%clk 0:00:19]} 57. Kxf4 {[%clk 0:00:05]}  g2 {[%clk 0:00:19]} 58. Rxg7 {[%clk 0:00:03]}  Kxg7 {[%clk 0:00:19]} 0-1


[Site "https://www.chess.com"]

[Event "Titled Tuesday Blitz July 13 2021"]
[White "Cunjalo, Faris"]
[Black "Martinez Alcantara, Jose Eduardo"]
[WhiteFideId "14410710"]
[BlackFideId "3805662"]
[WhiteElo "2855"]
[BlackElo "3000"]
[Result "0-1"]
[Round "05"]
[TimeControl "180+1"]
[Date "2021.07.13"]
[WhiteClock "0:00:04"]
[BlackClock "0:00:05"]

1. c4 {[%clk 0:03:00]}  c5 {[%clk 0:02:58]} 2. Nf3 {[%clk 0:03:00]}  Nc6 {[%clk 0:02:58]} 3. Nc3 {[%clk 0:02:59]}  g6 {[%clk 0:02:55]} 4. e3 {[%clk 0:02:58]}  Bg7 {[%clk 0:02:55]} 5. d4 {[%clk 0:02:57]}  d6 {[%clk 0:02:56]} 6. dxc5 {[%clk 0:02:50]}  Bxc3+ {[%clk 0:02:54]} 7. bxc3 {[%clk 0:02:51]}  dxc5 {[%clk 0:02:55]} 8. Qc2 {[%clk 0:02:40]}  Nf6 {[%clk 0:02:23]} 9. e4 {[%clk 0:02:36]}  O-O {[%clk 0:02:23]} 10. Bh6 {[%clk 0:02:33]}  Re8 {[%clk 0:02:23]} 11. h3 {[%clk 0:02:21]}  Qa5 {[%clk 0:02:16]} 12. Bd3 {[%clk 0:02:13]}  Be6 {[%clk 0:02:01]} 13. Ng5 {[%clk 0:02:05]}  Bd7 {[%clk 0:01:40]} 14. f4 {[%clk 0:01:48]}  Nd4 {[%clk 0:01:21]} 15. Qb2 {[%clk 0:01:47]}  Ne6 {[%clk 0:00:59]} 16. O-O {[%clk 0:01:36]}  Rad8 {[%clk 0:00:59]} 17. Rf3 {[%clk 0:01:08]}  Nxg5 {[%clk 0:00:52]} 18. Bxg5 {[%clk 0:01:07]}  Bc6 {[%clk 0:00:51]} 19. Re1 {[%clk 0:01:07]}  Rxd3 {[%clk 0:00:40]} 20. Rxd3 {[%clk 0:01:08]}  Nxe4 {[%clk 0:00:40]} 21. Bh6 {[%clk 0:00:38]}  Qc7 {[%clk 0:00:36]} 22. Qe2 {[%clk 0:00:33]}  f5 {[%clk 0:00:28]} 23. Red1 {[%clk 0:00:33]}  Kf7 {[%clk 0:00:22]} 24. Qe1 {[%clk 0:00:32]}  e5 {[%clk 0:00:19]} 25. Qh4 {[%clk 0:00:30]}  Qe7 {[%clk 0:00:10]} 26. Qxe7+ {[%clk 0:00:22]}  Rxe7 {[%clk 0:00:11]} 27. fxe5 {[%clk 0:00:23]}  Rxe5 {[%clk 0:00:12]} 28. Bf4 {[%clk 0:00:23]}  Re8 {[%clk 0:00:12]} 29. Kh2 {[%clk 0:00:21]}  g5 {[%clk 0:00:12]} 30. Bc1 {[%clk 0:00:20]}  f4 {[%clk 0:00:12]} 31. Re1 {[%clk 0:00:19]}  h6 {[%clk 0:00:08]} 32. Kg1 {[%clk 0:00:19]}  Re6 {[%clk 0:00:08]} 33. h4 {[%clk 0:00:17]}  Nd6 {[%clk 0:00:08]} 34. Rxe6 {[%clk 0:00:16]}  Kxe6 {[%clk 0:00:09]} 35. hxg5 {[%clk 0:00:17]}  hxg5 {[%clk 0:00:10]} 36. g3 {[%clk 0:00:17]}  fxg3 {[%clk 0:00:04]} 37. Rxg3 {[%clk 0:00:15]}  Ne4 {[%clk 0:00:04]} 38. Rh3 {[%clk 0:00:12]}  Kf5 {[%clk 0:00:03]} 39. Kf1 {[%clk 0:00:11]}  Nd6 {[%clk 0:00:02]} 40. Rg3 {[%clk 0:00:10]}  g4 {[%clk 0:00:02]} 41. Be3 {[%clk 0:00:10]}  b6 {[%clk 0:00:02]} 42. Ke2 {[%clk 0:00:09]}  Nxc4 {[%clk 0:00:03]} 43. Rg1 {[%clk 0:00:09]}  Bf3+ {[%clk 0:00:02]} 44. Kd3 {[%clk 0:00:09]}  Ne5+ {[%clk 0:00:03]} 45. Kd2 {[%clk 0:00:09]}  Nc4+ {[%clk 0:00:04]} 46. Kd3 {[%clk 0:00:09]}  Ne5+ {[%clk 0:00:04]} 47. Kd2 {[%clk 0:00:09]}  Ke4 {[%clk 0:00:05]} 48. Bf2 {[%clk 0:00:09]}  Kd5 {[%clk 0:00:06]} 49. Bg3 {[%clk 0:00:08]}  Nc4+ {[%clk 0:00:06]} 50. Kd3 {[%clk 0:00:09]}  Be4+ {[%clk 0:00:06]} 51. Ke2 {[%clk 0:00:10]}  Na3 {[%clk 0:00:06]} 52. Ke3 {[%clk 0:00:09]}  Bf3 {[%clk 0:00:05]} 53. Kd2 {[%clk 0:00:08]}  Kc4 {[%clk 0:00:05]} 54. Re1 {[%clk 0:00:09]}  Nb5 {[%clk 0:00:04]} 55. Re3 {[%clk 0:00:10]}  Kd5 {[%clk 0:00:03]} 56. a4 {[%clk 0:00:09]}  Na3 {[%clk 0:00:03]} 57. Re7 {[%clk 0:00:09]}  Nc4+ {[%clk 0:00:03]} 58. Kc2 {[%clk 0:00:09]}  a6 {[%clk 0:00:02]} 59. Rd7+ {[%clk 0:00:09]}  Kc6 {[%clk 0:00:03]} 60. Rc7+ {[%clk 0:00:09]}  Kd5 {[%clk 0:00:02]} 61. Rd7+ {[%clk 0:00:10]}  Ke6 {[%clk 0:00:02]} 62. Ra7 {[%clk 0:00:09]}  Be4+ {[%clk 0:00:02]} 63. Kb3 {[%clk 0:00:09]}  Bd5 {[%clk 0:00:03]} 64. Rxa6 {[%clk 0:00:08]}  Kf5 {[%clk 0:00:03]} 65. Kc2 {[%clk 0:00:07]}  Ke4 {[%clk 0:00:04]} 66. Ra7 {[%clk 0:00:07]}  Kf3 {[%clk 0:00:05]} 67. Bh4 {[%clk 0:00:07]}  g3 {[%clk 0:00:04]} 68. Bxg3 {[%clk 0:00:06]}  Kxg3 {[%clk 0:00:05]} 69. Rd7 {[%clk 0:00:07]}  Kf4 {[%clk 0:00:05]} 70. Kd3 {[%clk 0:00:04]}  Ne5+ {[%clk 0:00:05]} 0-1


[Site "https://www.chess.com"]

[Event "Titled Tuesday Blitz July 13 2021"]
[White "Daianu, Cristian-Clement"]
[Black "Mortazavi, Ali"]
[WhiteFideId "1208926"]
[BlackFideId "401323"]
[WhiteElo "2133"]
[BlackElo "2339"]
[Result "0-1"]
[Round "05"]
[TimeControl "180+1"]
[Date "2021.07.13"]
[WhiteClock "0:00:15"]
[BlackClock "0:00:09"]

1. e4 {[%clk 0:03:00]}  c6 {[%clk 0:02:58]} 2. d4 {[%clk 0:02:58]}  d5 {[%clk 0:02:57]} 3. f3 {[%clk 0:02:56]}  Qb6 {[%clk 0:02:54]} 4. a4 {[%clk 0:02:47]}  e5 {[%clk 0:02:52]} 5. dxe5 {[%clk 0:02:47]}  a5 {[%clk 0:02:47]} 6. Bd3 {[%clk 0:02:39]}  Bc5 {[%clk 0:02:43]} 7. Ne2 {[%clk 0:02:33]}  Ne7 {[%clk 0:02:43]} 8. Nbc3 {[%clk 0:02:27]}  O-O {[%clk 0:02:32]} 9. Bf4 {[%clk 0:02:26]}  Ng6 {[%clk 0:02:18]} 10. Bg3 {[%clk 0:02:18]}  Na6 {[%clk 0:01:41]} 11. f4 {[%clk 0:02:15]}  Re8 {[%clk 0:01:31]} 12. exd5 {[%clk 0:01:59]}  Nb4 {[%clk 0:01:16]} 13. d6 {[%clk 0:01:48]}  f6 {[%clk 0:01:05]} 14. Bxg6 {[%clk 0:01:46]}  hxg6 {[%clk 0:01:05]} 15. Ne4 {[%clk 0:01:30]}  Bf5 {[%clk 0:01:01]} 16. N2c3 {[%clk 0:01:24]}  fxe5 {[%clk 0:00:47]} 17. fxe5 {[%clk 0:01:23]}  Bd4 {[%clk 0:00:47]} 18. Qe2 {[%clk 0:01:17]}  Bxe5 {[%clk 0:00:41]} 19. Bxe5 {[%clk 0:01:05]}  Rxe5 {[%clk 0:00:40]} 20. O-O-O {[%clk 0:00:48]}  Bxe4 {[%clk 0:00:36]} 21. Nxe4 {[%clk 0:00:47]}  Na2+ {[%clk 0:00:36]} 22. Kd2 {[%clk 0:00:41]}  Qb4+ {[%clk 0:00:19]} 23. Kd3 {[%clk 0:00:40]}  Qxb2 {[%clk 0:00:12]} 24. Rb1 {[%clk 0:00:39]}  Nb4+ {[%clk 0:00:11]} 25. Ke3 {[%clk 0:00:33]}  Rxe4+ {[%clk 0:00:09]} 26. Kxe4 {[%clk 0:00:27]}  Re8+ {[%clk 0:00:09]} 27. Kf3 {[%clk 0:00:15]}  Qc3+ {[%clk 0:00:09]} 0-1


[Site "https://www.chess.com"]

[Event "Titled Tuesday Blitz July 13 2021"]
[White "Derraugh, Geordie"]
[Black "Weetik, Vjacheslav"]
[WhiteFideId "2603950"]
[BlackFideId "4153472"]
[WhiteElo "2132"]
[BlackElo "2469"]
[Result "0-1"]
[Round "05"]
[TimeControl "180+1"]
[Date "2021.07.13"]
[WhiteClock "0:00:08"]
[BlackClock "0:00:02"]

1. e4 {[%clk 0:03:00]}  c6 {[%clk 0:02:57]} 2. c4 {[%clk 0:03:00]}  e5 {[%clk 0:02:57]} 3. Nf3 {[%clk 0:03:00]}  d6 {[%clk 0:02:57]} 4. d4 {[%clk 0:03:00]}  Nd7 {[%clk 0:02:57]} 5. Nc3 {[%clk 0:03:00]}  Ngf6 {[%clk 0:02:57]} 6. Be2 {[%clk 0:03:00]}  Be7 {[%clk 0:02:57]} 7. O-O {[%clk 0:03:01]}  O-O {[%clk 0:02:57]} 8. Re1 {[%clk 0:03:00]}  a6 {[%clk 0:02:56]} 9. h3 {[%clk 0:02:58]}  b5 {[%clk 0:02:56]} 10. cxb5 {[%clk 0:02:55]}  axb5 {[%clk 0:02:56]} 11. d5 {[%clk 0:02:56]}  b4 {[%clk 0:02:51]} 12. dxc6 {[%clk 0:02:56]}  bxc3 {[%clk 0:02:51]} 13. cxd7 {[%clk 0:02:56]}  Bxd7 {[%clk 0:02:27]} 14. bxc3 {[%clk 0:02:56]}  Nxe4 {[%clk 0:02:27]} 15. Bd3 {[%clk 0:02:48]}  Nc5 {[%clk 0:02:16]} 16. Bc2 {[%clk 0:02:47]}  Be6 {[%clk 0:01:57]} 17. a4 {[%clk 0:02:46]}  h6 {[%clk 0:01:47]} 18. Be3 {[%clk 0:02:46]}  Qc7 {[%clk 0:01:47]} 19. Qd2 {[%clk 0:02:25]}  Rfe8 {[%clk 0:01:19]} 20. Reb1 {[%clk 0:02:23]}  f5 {[%clk 0:01:11]} 21. Rb5 {[%clk 0:02:07]}  Ne4 {[%clk 0:01:06]} 22. Bxe4 {[%clk 0:02:02]}  fxe4 {[%clk 0:01:07]} 23. Nh2 {[%clk 0:01:59]}  Rec8 {[%clk 0:00:55]} 24. Bxh6 {[%clk 0:01:55]}  Qxc3 {[%clk 0:00:41]} 25. Qxc3 {[%clk 0:01:35]}  Rxc3 {[%clk 0:00:41]} 26. Rb7 {[%clk 0:01:30]}  Bf6 {[%clk 0:00:33]} 27. Bd2 {[%clk 0:01:26]}  Rc2 {[%clk 0:00:31]} 28. Nf1 {[%clk 0:01:26]}  d5 {[%clk 0:00:31]} 29. a5 {[%clk 0:01:24]}  Ra6 {[%clk 0:00:21]} 30. Rab1 {[%clk 0:01:05]}  d4 {[%clk 0:00:21]} 31. R7b6 {[%clk 0:01:04]}  Bc4 {[%clk 0:00:21]} 32. Rxa6 {[%clk 0:00:55]}  Bxa6 {[%clk 0:00:21]} 33. Bb4 {[%clk 0:00:55]}  Bg5 {[%clk 0:00:16]} 34. Bd6 {[%clk 0:00:55]}  e3 {[%clk 0:00:16]} 35. fxe3 {[%clk 0:00:50]}  dxe3 {[%clk 0:00:16]} 36. Bxe5 {[%clk 0:00:47]}  e2 {[%clk 0:00:16]} 37. Ng3 {[%clk 0:00:42]}  Be3+ {[%clk 0:00:17]} 38. Kh2 {[%clk 0:00:39]}  Bf2 {[%clk 0:00:17]} 39. Nxe2 {[%clk 0:00:39]}  Bxe2 {[%clk 0:00:15]} 40. Rb7 {[%clk 0:00:35]}  g6 {[%clk 0:00:09]} 41. Rg7+ {[%clk 0:00:34]}  Kf8 {[%clk 0:00:09]} 42. Rxg6 {[%clk 0:00:35]}  Bd3 {[%clk 0:00:09]} 43. Rf6+ {[%clk 0:00:33]}  Ke7 {[%clk 0:00:09]} 44. a6 {[%clk 0:00:25]}  Be4 {[%clk 0:00:06]} 45. Rf4 {[%clk 0:00:19]}  Bd5 {[%clk 0:00:04]} 46. Rg4 {[%clk 0:00:19]}  Ke6 {[%clk 0:00:04]} 47. Bg3 {[%clk 0:00:19]}  Bc5 {[%clk 0:00:04]} 48. Bb8 {[%clk 0:00:18]}  Ra2 {[%clk 0:00:03]} 49. h4 {[%clk 0:00:15]}  Kf5 {[%clk 0:00:03]} 50. Rg5+ {[%clk 0:00:15]}  Ke6 {[%clk 0:00:03]} 51. Rg6+ {[%clk 0:00:14]}  Kf5 {[%clk 0:00:04]} 52. h5 {[%clk 0:00:15]}  Bd4 {[%clk 0:00:02]} 53. Bg3 {[%clk 0:00:11]}  Be4 {[%clk 0:00:01]} 54. Rd6 {[%clk 0:00:08]}  Rxg2+ {[%clk 0:00:01]} 55. Kh3 {[%clk 0:00:08]}  Rd2 {[%clk 0:00:02]} 56. Rd8 {[%clk 0:00:08]}  Bg2+ {[%clk 0:00:02]} 57. Kh4 {[%clk 0:00:08]}  Bf6# {[%clk 0:00:02]} 0-1


[Site "https://www.chess.com"]